bitfinex/quotes_ETHUSD_20250720
["timestamp","ask_amount","ask_price","bid_price","bid_amount"]
[1753034199709,0.2021,3740.3,3739.9,2.67386404]
[1753034199710,4.72,3740.2,3739.9,2.67386404]
[1753034200022,4.72,3740.2,3739.9,2.6738668]
[1753034200023,5.0,3740.1,3739.9,2.6738668]
[1753034200301,4.72,3740.2,3740.1,2.6737253]
[1753034200527,4.72,3740.4,3740.3,2.67358233]
[1753034200670,4.72,3741.1,3740.4,2.67351085]
[1753034200863,4.999,3740.5,3740.4,2.67351085]
[1753034201062,0.1336,3740.4,3739.6,0.1336]
[1753034201304,0.1336,3740.4,3740.3,2.67358233]
[1753034201505,4.997,3740.5,3740.3,2.67358233]
[1753034201897,0.55,3740.4,3740.3,2.67358233]
[1753034202096,0.1336,3740.3,3740.2,2.6736334]
[1753034202332,0.03341888,3740.4,3739.7,2.67396774]
[1753034202625,0.1336,3739.8,3739.1,0.1336]
[1753034202803,0.1336,3739.8,3739.1,3.1336]
[1753034203102,3.73666033,3740.3,3739.2,0.46654368]
[1753034203103,4.982,3740.1,3739.2,0.46654368]
[1753034203308,0.002,3740.5,3740.1,2.67371604]
[1753034203614,0.002,3740.5,3739.2,0.46654368]
[1753034203615,0.55,3740.3,3739.7,2.67399521]
[1753034203818,0.55,3740.1,3739.7,2.6740021]
[1753034204107,5.524,3740.1,3739.2,2.67436375]
[1753034204265,0.55,3739.9,3739.4,2.67422007]
[1753034204672,0.55,3739.7,3738.8,0.4398]
[1753034204880,0.55,3739.6,3739.2,2.67435972]
[1753034205791,4.72,3739.5,3739.2,2.67435972]
[1753034205998,4.72,3739.5,3738.8,0.4398]
[1753034206301,4.72,3739.5,3739.4,2.6742168]
[1753034206465,5.512,3739.7,3738.8,0.4398]
[1753034206466,4.72,3739.6,3738.9,2.67458343]
[1753034206675,4.72,3739.6,3739.3,2.67424073]
[1753034207001,4.72,3739.6,3739.4,2.67421735]
[1753034207407,4.72,3739.6,3738.9,0.02674583]
[1753034207592,4.72,3739.6,3739.5,2.67415429]
[1753034207994,4.72,3739.6,3739.5,3.11395429]
[1753034209810,0.55,3739.8,3739.7,2.67398512]
[1753034211426,0.55,3739.8,3739.6,2.67405674]
[1753034211794,0.55,3739.8,3739.2,0.4398]
[1753034212111,4.72,3739.9,3739.7,2.67396512]
[1753034212484,4.72,3739.9,3739.5,2.67414989]
[1753034212685,4.72,3739.9,3739.2,0.4398]
[1753034212989,0.1336,3739.7,3739.2,0.4398]
[1753034213194,0.1336,3739.7,3739.1,0.1336]
[1753034213419,0.1336,3739.7,3739.6,2.67408278]
[1753034214524,0.55,3739.6,3739.1,0.1336]
[1753034214818,0.1336,3739.4,3739.2,2.67430701]
[1753034215390,0.1336,3739.4,3739.1,2.67441546]
[1753034215587,0.1336,3739.4,3739.2,2.67436122]
[1753034215786,4.8536,3739.4,3739.3,2.67429732]
[1753034215991,4.8536,3739.4,3739.1,2.67437187]
[1753034216423,4.8536,3739.4,3739.2,2.67434371]
[1753034217132,0.55,3739.3,3738.6,2.67475682]
[1753034217334,0.55,3739.1,3738.6,2.67475682]
[1753034217489,4.72,3739.2,3738.7,0.46654726]
[1753034217698,4.72,3739.2,3739.1,2.67444037]
[1753034218124,4.72,3739.2,3738.8,0.4398]
[1753034218323,4.72,3739.2,3739.1,2.67444037]
[1753034218524,4.72,3739.2,3739.0,2.67448793]
[1753034218730,4.72,3739.2,3739.1,2.67444037]
[1753034219795,4.72,3739.2,3739.1,3.10304037]
[1753034220009,4.72,3739.2,3739.1,3.68347728]
[1753034221022,4.945,3739.7,3739.6,2.67408278]
[1753034221330,4.945,3739.7,3739.6,3.10268278]
[1753034221510,0.55,3740.4,3740.1,2.67368588]
[1753034221710,0.55,3740.3,3740.2,2.67360248]
[1753034221912,0.002,3740.5,3739.7,2.67401128]
[1753034222113,4.946,3740.5,3740.3,2.67352165]
[1753034222309,0.55,3740.4,3740.1,2.67367951]
[1753034222611,0.55,3740.4,3740.2,2.67359199]
[1753034223502,0.55,3740.4,3740.3,2.67358233]
[1753034223731,4.946,3740.5,3740.4,2.67351085]
[1753034223732,0.002,3740.5,3740.4,2.67351085]
[1753034223904,0.002,3740.5,3740.4,3.10211085]
[1753034225606,0.002,3740.5,3740.4,2.67351085]
[1753034226172,0.55,3740.4,3739.4,0.7783]
[1753034226334,0.55,3740.2,3739.0,0.4286]
[1753034226638,0.55,3740.0,3738.9,3.0]
[1753034226845,0.55,3739.8,3739.4,2.67416759]
[1753034227052,0.55,3739.8,3739.5,2.67413944]
[1753034227258,0.55,3739.8,3739.4,2.6742095]
[1753034227405,0.1336,3739.5,3739.4,2.6742095]
[1753034227607,0.1336,3739.5,3738.7,0.4286]
[1753034227852,0.1336,3739.5,3738.4,0.001]
[1753034227853,0.1336,3738.8,3738.4,0.001]
[1753034228218,0.1336,3738.8,3738.5,2.67482328]
[1753034228741,0.1336,3738.8,3738.6,2.67478787]
[1753034228943,0.1336,3738.8,3738.5,2.67484917]
[1753034229117,0.1336,3738.8,3738.7,2.6747265]
[1753034229321,0.1336,3738.8,3738.6,2.67479619]
[1753034229630,0.1336,3738.8,3738.5,2.67481698]
[1753034230018,0.1336,3738.8,3738.5,2.6748696]
[1753034230244,0.1336,3738.8,3738.7,2.6747265]
[1753034230438,0.75198008,3739.4,3739.0,2.6744749]
[1753034230439,5.69298008,3739.4,3739.0,2.6744749]
[1753034230643,0.1336,3739.0,3738.6,0.02674798]
[1753034230805,0.1336,3739.0,3738.9,2.67458343]
[1753034231009,0.33558008,3739.4,3739.3,2.67429732]
[1753034231210,0.1336,3739.4,3739.3,3.10289732]
[1753034231433,0.1336,3739.4,3739.3,2.67429732]
[1753034231644,0.1336,3739.4,3738.5,2.6748]
[1753034231817,0.03342067,3740.2,3739.4,2.67421291]
[1753034231818,0.55,3739.6,3739.4,2.67421291]
[1753034232164,4.941,3740.0,3739.4,0.4286]
[1753034232311,0.1336,3739.6,3739.4,2.67420712]
[1753034232631,0.1336,3739.6,3739.5,2.67415429]
[1753034233404,0.1336,3739.6,3739.3,2.67424699]
[1753034233707,3.22387064,3739.9,3739.3,2.67424699]
[1753034233907,0.1336,3739.3,3739.2,2.67436108]
[1753034234109,0.1336,3739.1,3738.8,4.94]
[1753034234304,2.67358653,3740.3,3738.8,4.94]
[1753034234305,0.002,3740.5,3738.9,0.02674583]
[1753034234549,0.1336,3739.8,3739.7,2.67401128]
[1753034234852,0.1336,3740.3,3740.2,2.67365381]
[1753034235213,0.1336,3740.3,3740.2,3.10225381]
[1753034236311,0.002,3740.5,3740.4,2.67351085]
[1753034237234,0.002,3740.5,3740.4,3.10211085]
[1753034237436,0.002,3740.5,3740.4,2.90211085]
[1753034238984,0.002,3740.5,3740.4,3.03571085]
[1753034239348,0.002,3740.5,3740.4,3.06244595]
[1753034239552,0.002,3740.5,3740.4,3.85684595]
[1753034239982,0.002,3740.5,3740.4,5.0035951]
[1753034241590,0.022,3740.9,3740.8,2.67322497]
[1753034241903,0.022,3740.9,3740.8,7.76855721]
[1753034242198,0.022,3740.9,3740.8,2.67322497]
[1753034243192,0.022,3740.9,3740.8,3.10182497]
[1753034243395,0.022,3740.9,3740.8,2.67322497]
[1753034243773,0.022,3740.9,3740.5,4.934]
[1753034244122,0.022,3740.9,3740.8,2.67322497]
[1753034244404,0.022,3740.9,3740.4,0.1336]
[1753034244615,0.022,3740.9,3740.4,2.67346641]
[1753034244616,0.572,3740.9,3740.4,2.67346641]
[1753034244770,0.1336,3740.6,3740.5,2.67343937]
[1753034244968,0.1336,3740.6,3740.0,0.1336]
[1753034245194,0.1336,3740.4,3740.2,2.67364099]
[1753034245389,0.1336,3740.4,3740.1,2.67370629]
[1753034245994,0.55,3740.3,3739.7,0.1336]
[1753034246190,0.0334162,3740.7,3738.4,2.74126659]
[1753034246191,0.1336,3739.8,3739.6,2.6740188]
[1753034246387,0.1336,3739.8,3739.6,2.67403802]
[1753034246708,0.1336,3739.8,3739.5,7.60513013]
[1753034247005,3.25709216,3740.2,3739.3,2.67424212]
[1753034247006,0.55,3740.0,3739.3,2.67424212]
[1753034247205,0.55,3740.0,3738.9,0.7748]
[1753034247206,0.1336,3739.4,3738.9,2.67454331]
[1753034247407,0.1336,3739.4,3739.3,2.67429732]
[1753034247772,0.1336,3739.7,3739.4,2.67417095]
[1753034247989,0.1336,3739.7,3739.2,2.67435554]
[1753034248192,0.1336,3739.7,3739.4,0.4376]
[1753034248511,0.1336,3739.7,3739.1,2.67444037]
[1753034249073,0.1336,3739.7,3739.3,2.67424775]
[1753034249277,0.1336,3739.7,3739.1,2.67444037]
[1753034249620,0.1336,3739.4,3739.0,7.60450844]
[1753034249909,0.1336,3739.4,3739.0,4.93]
[1753034250122,0.55,3739.6,3738.5,0.4376]
[1753034250421,0.1336,3739.1,3738.6,2.67478535]
[1753034250724,0.1336,3739.1,3738.6,2.67475113]
[1753034251011,0.1336,3739.1,3738.7,2.67471686]
[1753034251198,0.1336,3739.1,3738.6,3.1123848]
[1753034251404,0.1336,3739.1,3738.6,0.4376]
[1753034251603,0.1336,3739.1,3738.7,2.67471303]
[1753034251800,0.1336,3739.1,3738.8,2.67464911]
[1753034252119,0.1336,3739.1,3738.7,2.67470139]
[1753034252331,0.1336,3739.1,3738.6,0.4376]
[1753034253183,0.1336,3739.1,3738.7,2.67471373]
[1753034253382,0.1336,3739.1,3738.6,3.11234059]
[1753034253615,0.1336,3739.1,3738.7,2.67472509]
[1753034253983,0.1336,3739.1,3738.7,2.67472319]
[1753034254434,0.1336,3739.1,3738.5,7.60481197]
[1753034254741,0.55,3739.0,3738.5,0.001]
[1753034254881,0.1336,3738.7,3738.5,0.001]
[1753034255233,3.25823302,3738.6,3738.5,0.001]
[1753034255598,3.46033302,3738.6,3738.5,0.001]
[1753034255782,1.21029973,3738.6,3738.5,0.001]
[1753034255977,1.17686476,3738.6,3738.5,0.001]
[1753034256182,0.55,3738.6,3738.5,0.001]
[1753034257166,0.1336,3738.7,3738.5,0.001]
[1753034257516,0.1336,3738.7,3738.6,2.67479805]
[1753034257825,0.1336,3738.7,3738.6,3.11239805]
[1753034258843,4.924,3739.3,3739.0,2.67444062]
[1753034259331,0.55,3739.6,3739.1,2.67443331]
[1753034259533,0.55,3739.6,3738.9,2.67458014]
[1753034259534,0.1336,3739.1,3738.6,0.4376]
[1753034259735,0.55,3739.4,3738.7,3.11226247]
[1753034259736,0.1336,3738.9,3738.7,3.11226247]
[1753034260036,0.1336,3738.9,3738.8,3.11225496]
[1753034260380,0.1336,3738.9,3738.5,0.001]
[1753034260533,0.55,3738.9,3738.5,0.001]
[1753034260738,0.32245675,3738.8,3738.5,0.001]
[1753034260937,0.20198008,3738.7,3738.5,0.001]
[1753034264286,0.55,3738.5,3738.1,0.021]
[1753034264500,0.55,3738.7,3738.1,0.021]
[1753034264705,0.55,3738.7,3738.1,2.69613974]
[1753034264995,0.55,3738.5,3738.1,0.021]
[1753034265201,0.55,3738.6,3738.2,2.6750402]
[1753034265382,0.55,3738.6,3738.2,0.4376]
[1753034265552,3.22508426,3738.2,3738.1,0.021]
[1753034266060,3.25852281,3738.2,3738.1,0.021]
[1753034266256,3.81843652,3738.2,3738.1,0.021]
[1753034266673,6.06135226,3738.2,3738.1,0.021]
[1753034267263,0.55,3738.2,3738.1,2.69615582]
[1753034267463,2.67456513,3739.0,3738.1,2.69615582]
[1753034267464,6.41812475,3739.9,3738.1,0.021]
[1753034267663,4.917,3739.0,3738.5,2.67479888]
[1753034267924,4.917,3738.9,3738.1,0.4586]
[1753034268069,4.917,3738.8,3738.7,2.67472057]
[1753034268279,5.4077,3738.8,3738.1,0.4586]
[1753034268492,0.03343408,3738.7,3738.4,2.67489567]
[1753034268799,0.03343408,3738.7,3738.3,2.67495267]
[1753034269304,0.55,3738.6,3738.1,2.69608956]
[1753034269722,0.03343587,3738.5,3738.1,0.021]
[1753034270067,0.03343587,3738.5,3738.1,2.69613017]
[1753034270268,0.55,3738.7,3738.1,2.69613017]
[1753034270575,1.68068785,3738.7,3738.1,0.021]
[1753034270793,0.03343497,3738.6,3738.1,2.69615077]
[1753034271494,4.914,3738.6,3738.1,0.021]
[1753034271701,4.914,3738.6,3738.1,2.6961039]
[1753034272017,4.914,3738.6,3738.2,2.67507995]
[1753034272215,4.914,3738.6,3738.1,0.4586]
[1753034272513,5.464,3738.6,3738.5,0.001]
[1753034272714,6.44010429,3738.6,3738.5,0.001]
[1753034273627,9.11490234,3738.6,3738.5,0.001]
[1753034273778,6.44010429,3738.6,3738.5,0.001]
[1753034273979,6.43810429,3738.6,3738.5,0.001]
[1753034274622,9.11290234,3738.6,3738.5,0.001]
[1753034274914,6.43810429,3738.6,3738.5,0.001]
[1753034275486,9.11290234,3738.6,3738.5,0.001]
[1753034275690,6.43810429,3738.6,3738.5,0.001]
[1753034276502,9.11290234,3738.6,3738.5,0.001]
[1753034276924,9.31500234,3738.6,3738.5,0.001]
[1753034277123,6.43410429,3738.6,3738.5,0.001]
[1753034277728,9.10890234,3738.6,3738.5,0.001]
[1753034278550,1.52610429,3738.6,3738.5,0.001]
[1753034278691,0.55,3738.6,3738.5,0.001]
[1753034278885,8.13179805,3738.6,3738.5,0.001]
[1753034279329,8.33389805,3738.6,3738.5,0.001]
[1753034279905,8.33289805,3738.6,3738.5,0.001]
[1753034281523,0.20198008,3738.8,3738.5,0.001]
[1753034281746,4.904,3738.6,3738.5,0.001]
[1753034281928,0.20198008,3738.8,3738.5,0.001]
[1753034281929,0.20198008,3738.8,3738.6,0.4681]
[1753034282136,5.10598008,3738.8,3738.7,3.1428265]
[1753034282314,5.10598008,3738.8,3738.5,0.001]
[1753034282716,0.03343408,3738.7,3738.5,0.001]
[1753034283111,3.42689805,3738.6,3738.5,0.001]
[1753034285203,3.22479805,3738.6,3738.5,0.001]
[1753034285403,8.12579805,3738.6,3738.5,0.001]
[1753034285803,8.22479805,3738.6,3738.5,0.001]
[1753034286005,9.36580876,3738.6,3738.5,0.001]
[1753034287344,9.36380876,3738.6,3738.5,0.001]
[1753034289820,9.36380876,3738.6,3736.4,0.4681]
[1753034289821,2.67515277,3738.2,3736.4,0.4681]
[1753034290150,2.67515277,3738.2,3736.2,0.8144]
[1753034290151,0.55,3737.9,3737.2,2.67573752]
[1753034290347,0.55,3737.7,3737.3,0.4681]
[1753034290503,0.55,3737.7,3737.4,0.4681]
[1753034290706,0.55,3737.9,3737.5,0.4681]
[1753034290906,4.895,3737.8,3737.6,0.4681]
[1753034291143,4.895,3737.8,3737.5,2.67556573]
[1753034291348,5.445,3737.8,3737.7,0.4681]
[1753034291651,0.51059801,3738.8,3737.7,0.4681]
[1753034291858,4.895,3738.7,3737.7,0.4681]
[1753034292004,6.417,3739.6,3737.8,0.0267537]
[1753034292208,7.56815429,3739.5,3738.4,2.67487779]
[1753034292415,0.02,3738.9,3738.5,0.4681]
[1753034292647,0.55,3738.7,3738.6,0.4681]
[1753034293011,4.894,3738.8,3738.6,0.4681]
[1753034293348,4.893,3738.7,3738.6,0.4681]
[1753034293551,5.443,3738.7,3738.6,0.4681]
[1753034294147,0.55,3738.7,3738.6,0.4681]
[1753034294336,5.442,3738.7,3738.6,0.4681]
[1753034294742,0.02,3738.9,3738.6,0.4681]
[1753034294941,4.891,3738.8,3738.7,0.4681]
[1753034295628,0.55,3738.7,3738.1,2.67515449]
[1753034295816,3.25820074,3738.7,3738.1,2.6751481]
[1753034296020,2.67487395,3738.5,3737.8,0.4681]
[1753034296268,0.55,3738.3,3737.6,0.4681]
[1753034296718,0.55,3738.2,3737.6,0.4681]
[1753034296917,3.22502833,3738.3,3737.6,3.14355333]
[1753034297255,4.888,3738.6,3738.1,2.67515436]
[1753034297465,0.1336,3737.9,3737.8,2.67537053]
[1753034297953,5.437,3738.7,3738.2,2.67507024]
[1753034298155,5.437,3738.7,3738.3,2.67498835]
[1753034298458,5.437,3738.7,3738.4,3.14303195]
[1753034298617,5.437,3738.7,3738.4,2.67493195]
[1753034298817,5.437,3738.7,3738.5,0.4681]
[1753034299125,5.47043408,3738.7,3738.1,2.67514484]
[1753034299456,0.1336,3738.3,3738.2,3.14315743]
[1753034300257,0.1336,3738.3,3738.2,3.90775743]
[1753034300850,0.02,3738.9,3738.2,1.2327]
[1753034301050,0.1336,3738.7,3738.2,0.7646]
[1753034301239,0.1336,3738.7,3738.6,2.67479805]
[1753034301652,0.1336,3738.7,3738.6,3.14289805]
[1753034302719,0.02,3738.9,3738.8,2.67465496]
[1753034303151,0.02,3738.9,3738.8,3.14275496]
[1753034304845,0.02,3738.9,3738.8,4.49737026]
[1753034305374,0.1336,3739.3,3739.2,2.67436884]
[1753034305552,0.002,3739.4,3739.2,2.67436884]
[1753034305874,0.002,3739.4,3739.3,0.4681]
[1753034306029,0.002,3739.4,3739.3,3.14239732]
[1753034306727,0.002,3739.4,3739.3,2.67429732]
[1753034307042,0.002,3739.4,3739.3,3.14239732]
[1753034311167,0.002,3739.4,3738.8,0.7595]
[1753034311372,0.552,3739.4,3738.9,2.67456325]
[1753034311538,0.55,3739.2,3738.7,2.67471906]
[1753034311742,0.55,3739.0,3737.9,1.1964]
[1753034311978,0.55,3738.8,3737.9,1.1964]
[1753034312177,0.55,3738.6,3738.1,2.67514259]
[1753034312495,0.55,3738.4,3737.9,0.4321]
[1753034312631,0.55,3738.4,3737.3,6.0644]
[1753034312838,0.20198008,3738.9,3737.4,0.4321]
[1753034313037,0.55,3738.8,3738.7,2.67466465]
[1753034313280,0.20198008,3738.9,3738.4,0.4321]
[1753034313483,0.55,3739.3,3738.5,3.10695853]
[1753034313666,0.55,3739.3,3738.8,2.67458735]
[1753034313873,1.10931438,3739.3,3739.0,2.67444479]
[1753034314041,0.002,3739.4,3738.9,3.10666477]
[1753034314244,0.002,3739.4,3739.0,2.67451038]
[1753034314448,0.002,3739.4,3739.0,0.4321]
[1753034314688,0.002,3739.4,3739.0,3.10660878]
[1753034314850,0.002,3739.4,3738.4,4.89174941]
[1753034315054,0.002,3739.4,3739.1,3.10652162]
[1753034315383,0.002,3739.4,3739.2,2.67435548]
[1753034315982,0.002,3739.4,3739.2,2.67432247]
[1753034316482,0.002,3739.4,3739.3,2.67429732]
[1753034316680,0.002,3739.4,3739.3,3.10639732]
[1753034317442,0.002,3739.4,3739.3,3.13314029]
[1753034317645,1e-08,3739.4,3739.3,3.79437657]
[1753034318041,1e-08,3739.4,3739.3,3.7676336]
[1753034318247,1e-08,3739.4,3739.3,3.79437657]
[1753034318657,0.02,3739.9,3739.8,2.67393978]
[1753034318953,0.002,3740.2,3740.1,2.6737253]
[1753034319151,0.002,3740.2,3740.1,4.07177425]
[1753034319152,1e-08,3740.2,3740.1,4.07177425]
[1753034319354,1e-08,3740.2,3740.1,5.44237425]
[1753034320358,1e-08,3740.2,3740.1,5.415637]
[1753034320564,1e-08,3740.2,3740.1,4.0443253]
[1753034320763,1e-08,3740.2,3740.1,8.7687253]
[1753034320952,1e-08,3740.2,3740.1,3.1058253]
[1753034325859,1e-08,3740.2,3740.1,3.13256255]
[1753034326394,1e-08,3740.5,3740.4,3.45231085]
[1753034326597,1e-08,3740.5,3740.4,9.22815776]
[1753034326760,1e-08,3740.5,3740.4,9.66025776]
[1753034327574,1e-08,3740.9,3740.8,2.67322497]
[1753034327789,1e-08,3740.9,3740.8,7.52022497]
[1753034328157,1e-08,3740.9,3740.8,7.95232497]
[1753034328359,1e-08,3740.9,3740.8,9.28222657]
[1753034329214,0.002,3741.6,3741.5,2.67272484]
[1753034329363,0.002,3741.6,3741.5,7.51872484]
[1753034329684,0.002,3741.6,3741.5,7.95082484]
[1753034330606,1e-08,3741.6,3741.5,7.95082484]
[1753034330899,1e-08,3741.6,3741.5,9.2804822]
[1753034332898,1e-08,3741.6,3741.5,2.67272484]
[1753034333069,1e-08,3741.6,3741.5,7.51172484]
[1753034333279,1e-08,3741.6,3741.5,2.67272484]
[1753034333487,1e-08,3741.6,3741.5,7.51172484]
[1753034333673,1e-08,3741.6,3741.5,7.94382484]
[1753034334006,1e-08,3741.6,3741.5,9.00548829]
[1753034334320,1e-08,3741.6,3741.0,0.4321]
[1753034334479,0.55000001,3741.6,3741.1,7.5099956]
[1753034334673,0.55000001,3741.6,3741.1,4.837]
[1753034335071,0.55000001,3741.6,3740.8,2.67320531]
[1753034335072,0.55,3741.4,3740.8,2.67318114]
[1753034335295,0.55,3741.2,3740.3,0.804]
[1753034335491,3.54857533,3741.2,3740.6,2.67336214]
[1753034335707,0.55,3741.1,3740.6,2.67336172]
[1753034335910,2.67323657,3740.8,3740.1,2.6737253]
[1753034336107,0.0334162,3740.7,3740.2,7.50759978]
[1753034336279,2.70657939,3740.9,3740.2,7.50759978]
[1753034336483,0.1336,3740.4,3740.2,7.50759978]
[1753034336719,0.1336,3740.4,3740.3,2.67358233]
[1753034337511,1e-08,3741.6,3741.0,2.67301669]
[1753034337712,1e-08,3741.6,3740.9,4.833]
[1753034338020,0.1336,3741.0,3740.8,2.67320223]
[1753034338221,0.1356,3741.0,3740.9,2.67315351]
[1753034339499,0.1356,3741.0,3740.9,3.13855351]
[1753034340420,0.1356,3741.0,3740.9,7.96855351]
[1753034340622,1e-08,3741.6,3741.5,2.67272484]
[1753034340822,1e-08,3741.6,3741.5,2.69945208]
[1753034340990,1e-08,3741.6,3741.5,2.67272484]
[1753034341183,1e-08,3741.6,3741.5,3.13812484]
[1753034341919,1e-08,3741.6,3741.5,4.29577836]
[1753034342226,1e-08,3741.6,3741.5,4.3225056]
[1753034343843,1e-08,3741.6,3741.5,7.96212484]
[1753034346734,1e-08,3741.6,3741.5,7.96012484]
[1753034347712,1e-08,3741.8,3741.7,2.67258198]
[1753034347935,0.002,3742.0,3741.9,2.67243913]
[1753034348099,0.002,3742.0,3741.9,7.51716352]
[1753034348299,0.002,3742.0,3741.9,8.46775981]
[1753034349025,1e-08,3742.0,3741.9,8.60135981]
[1753034349226,1e-08,3742.0,3741.9,12.38585981]
[1753034350605,1e-08,3742.3,3742.2,2.67222489]
[1753034350814,1e-08,3742.3,3742.2,8.96026422]
[1753034351019,1e-08,3742.3,3742.2,9.55926422]
[1753034351940,1e-08,3742.4,3742.3,2.67215348]
[1753034352100,1e-08,3742.4,3742.3,3.13755348]
[1753034353019,1e-08,3742.4,3742.3,3.16427501]
[1753034353217,1e-08,3742.4,3742.3,4.6573198]
[1753034354131,1e-08,3742.4,3742.3,4.63059827]
[1753034355320,1e-08,3742.4,3742.3,7.6573198]
[1753034355519,1e-08,3742.4,3742.3,7.63059827]
[1753034355706,1e-08,3742.4,3742.3,8.46279827]
[1753034355907,1e-08,3742.4,3742.3,11.77575348]
[1753034356130,1e-08,3742.4,3742.3,3.96975348]
[1753034356339,1e-08,3742.4,3742.3,3.50435348]
[1753034356643,1e-08,3742.4,3742.3,2.67215348]
[1753034357003,0.13360001,3742.4,3742.3,2.67215348]
[1753034358610,1e-08,3742.4,3742.3,3.13755348]
[1753034358820,1e-08,3742.4,3742.3,2.67215348]
[1753034360638,4.72000001,3742.4,3742.3,2.67215348]
[1753034361349,0.6836,3742.3,3742.0,2.67231662]
[1753034361566,0.55,3742.1,3741.8,2.6725012]
[1753034361855,0.55,3741.9,3741.8,2.6725012]
[1753034363175,0.55,3741.7,3740.8,2.67316581]
[1753034363380,0.1336,3741.6,3741.5,2.67266238]
[1753034363537,0.55,3741.6,3741.5,2.67266238]
[1753034368684,0.1336,3741.5,3741.1,0.4505]
[1753034368863,0.1336,3741.5,3741.4,2.67279627]
[1753034369980,0.1336,3741.5,3740.3,2.67353304]
[1753034369981,0.55,3741.4,3740.0,0.4505]
[1753034370184,0.03341084,3741.3,3740.2,2.67365381]
[1753034370365,0.2021,3741.5,3740.9,2.67310433]
[1753034370570,0.2021,3741.5,3739.5,2.67411374]
[1753034370571,2.67580006,3737.2,3733.8,1.30199923]
[1753034370770,2.74213204,3737.2,3734.9,2.67743608]
[1753034370954,5.67622972,3736.6,3733.7,6.41201684]
[1753034371150,6.22622972,3736.6,3734.7,0.7766]
[1753034371394,0.55,3737.1,3735.9,0.7766]
[1753034371563,3.22622972,3736.6,3735.1,0.02]
[1753034371890,0.55,3736.6,3735.3,1.62854292]
[1753034372095,0.55,3736.6,3735.1,0.02]
[1753034372296,0.55,3736.6,3735.5,2.67700011]
[1753034372478,0.55,3736.6,3735.7,0.4505]
[1753034372679,0.55,3736.6,3736.0,2.67658823]
[1753034372883,0.55,3736.6,3735.7,0.4505]
[1753034373087,0.55,3736.6,3736.0,2.67665897]
[1753034373283,0.55,3736.6,3735.7,0.4505]
[1753034373483,0.55,3736.6,3735.7,2.67685861]
[1753034373685,3.22622972,3736.6,3735.6,2.67689009]
[1753034374007,4.53090556,3736.6,3735.3,0.4505]
[1753034374165,4.53090556,3736.6,3735.7,2.67685293]
[1753034374369,1.82122297,3736.6,3735.8,2.67677851]
[1753034374793,0.55,3736.6,3736.0,2.67664437]
[1753034375166,0.55,3736.6,3735.7,2.67684644]
[1753034375364,0.55,3736.6,3736.1,2.69658541]
[1753034375683,0.55,3736.6,3736.2,2.67650563]
[1753034375884,0.55,3736.6,3736.1,2.69658327]
[1753034376288,0.55,3736.6,3736.2,2.67650615]
[1753034376804,0.4573,3738.5,3736.6,3.8253]
[1753034377007,2.6750127,3738.3,3736.6,0.8253]
[1753034377210,2.67564978,3737.5,3736.6,2.67622972]
[1753034377504,4.901,3737.6,3737.0,2.67592526]
[1753034377690,0.03344481,3737.5,3736.6,0.4505]
[1753034377885,4.902,3737.8,3737.4,2.67560063]
[1753034378083,4.902,3737.8,3736.6,0.4505]
[1753034378306,7.57737279,3737.8,3737.0,2.67588979]
[1753034378516,7.57737279,3737.8,3736.5,0.001]
[1753034378517,5.7048114,3737.7,3736.5,0.001]
[1753034378808,2.67579086,3737.3,3736.5,0.001]
[1753034378970,0.5834475,3737.2,3736.5,0.001]
[1753034379166,1.0407475,3737.2,3736.5,0.001]
[1753034379592,1.0407475,3737.2,3736.6,2.67622972]
[1753034379804,1.0073,3737.2,3736.9,2.67599543]
[1753034380004,0.6836,3736.9,3736.8,2.67604109]
[1753034380306,0.55,3736.9,3736.8,2.67604109]
[1753034380511,0.6836,3736.8,3736.7,2.6761498]
[1753034380760,0.6836,3736.8,3736.5,0.001]
[1753034380761,0.55,3736.8,3736.5,0.001]
[1753034380879,0.55,3736.9,3736.7,2.6761581]
[1753034381077,0.55,3736.9,3736.8,2.67608649]
[1753034381268,5.433,3737.1,3736.9,2.67600632]
[1753034382095,5.433,3737.1,3736.9,2.67601487]
[1753034382096,0.55,3737.0,3736.9,2.67601487]
[1753034382503,4.873,3737.2,3737.1,2.67587166]
[1753034382680,0.1336,3737.1,3736.6,0.4515]
[1753034382883,0.1336,3737.1,3737.0,2.67594327]
[1753034383107,4.8536,3737.1,3737.0,2.67594327]
[1753034383706,4.8536,3737.1,3737.0,3.12644327]
[1753034384095,4.8536,3737.1,3737.0,2.67594327]
[1753034384514,0.55,3737.0,3736.6,0.001]
[1753034384698,0.58344929,3737.0,3736.9,2.67601487]
[1753034385024,0.55,3737.0,3736.9,2.67601487]
[1753034386375,4.72,3737.1,3737.0,2.67594327]
[1753034386623,9.573,3737.1,3737.0,2.67594327]
[1753034386925,4.72,3737.1,3737.0,3.12644327]
[1753034387340,4.8536,3737.2,3737.1,2.67587166]
[1753034387490,4.8536,3737.2,3737.1,3.12637166]
[1753034391179,4.72,3738.2,3738.1,2.67515582]
[1753034391487,0.1336,3738.1,3738.0,2.67522739]
[1753034391678,10.091,3738.2,3738.1,2.67515582]
[1753034391883,7.10183,3738.2,3738.1,2.67515582]
[1753034392097,11.91783,3738.2,3738.1,2.67515582]
[1753034392491,7.10183,3738.2,3738.1,2.67515582]
[1753034392695,0.1336,3738.1,3737.1,0.4505]
[1753034392906,5.364,3738.0,3737.9,2.67529896]
[1753034393096,0.55,3738.0,3737.9,2.67529896]
[1753034393433,5.359,3738.0,3737.9,2.67529896]
[1753034393589,0.55,3738.0,3737.9,2.67529896]
[1753034393914,5.354,3738.0,3737.9,2.67529896]
[1753034394085,0.55,3738.0,3737.9,2.67529896]